Cogmind - Beta 16 *** ADVENTURER MODE // 2025.11.01 @ 01:32:13 Player: Loganathor Result: Destroyed by H-66 Slayer with Gauss Rifle Performance ------------- Evolutions (4) 2000 Regions Visited (5) 1000 Robots Destroyed (152) 760 Value Destroyed (4485) 4485 Prototype IDs (4) 80 Alien Tech Used (0) 0 Bonus (0) 0 TOTAL SCORE: 8325 Bonus ------- None Cogmind --------- Core Integrity 0/850 Matter 211/300 Energy 58/100 System Corruption 2% Temperature Cool (0) Movement Core (1350) Ox26 Location -6/Factory Parts ------- > --- POWER (2) -------- (None) > --- PROPULSION (6) --- (None) > --- UTILITY (5) ------ Coolant Injector Huge Storage Unit Enhanced Optical Array Improved Signal Interpreter > --- WEAPON (2) ------- (None) > --- INVENTORY (25) --- Improved Heat Sink Coolant Injector Large Storage Unit Huge Storage Unit Advanced Signal Interpreter Advanced Signal Interpreter Recoil Stabilizer Dynamic Insulation System Heavy Hammer Chainsword Peak State ------------ > --- POWER ------------ Light Nuclear Core Light Nuclear Core > --- PROPULSION ------- Spiked Treads Spiked Treads Medium Treads Medium Treads Medium Treads Improved Medium Treads > --- UTILITY ---------- Cryofiber Web Coolant Injector Huge Storage Unit Enhanced Optical Array Improved Signal Interpreter > --- WEAPON ----------- Heavy Machine Gun Great Axe > --- INVENTORY -------- Improved Ion Engine Light Angular Momentum Engine Spiked Treads Improved Heat Sink Coolant Injector Large Storage Unit Large Storage Unit Advanced Signal Interpreter Advanced Signal Interpreter Recoil Stabilizer Dynamic Insulation System Drone Bay High-powered Shock Rifle Proton Missile Launcher Guided EMP Blaster Guided EMP Blaster Mini Grenade Launcher Heavy Hammer Chainsword [Rating: 60] Favorites ----------- Power Light Nuclear Core Engine Ion Engine Power Core Light Nuclear Core Propulsion Medium Treads Treads Medium Treads Leg Aluminum Leg Wheel Wheel Utility Signal Interpreter Device Cryofiber Web Storage Huge Storage Unit Processor Signal Interpreter Weapon Flak Cannon Energy Gun Shock Rifle Energy Cannon Heavy Ion Cannon Ballistic Gun Heavy Assault Rifle Ballistic Cannon Flak Cannon Launcher Mini Grenade Launcher Impact Weapon Mace Slashing Weapon Chainsword Build | -11 -10 -10 -8 -7 -6 ------- Run | Yrd Mat Sub Mat Fac Fac Slots Evolved 8 | . . . 4 2 2 Power 1 | . . . . 1 . Propulsion 4 | . . . 1 1 2 Utility 3 | . . . 3 . . Weapon . | . . . . . . Parts Attached 99 | 7 8 10 33 24 17 Power 19 | 2 1 3 4 4 5 Engine 11 | 2 1 3 1 1 3 Core 8 | . . . 3 3 2 Reactor . | . . . . . . Propulsion 32 | 2 . 3 13 10 4 Treads 20 | 2 . . 6 8 4 Leg 2 | . . . 2 . . Wheel 10 | . . 3 5 2 . Hover . | . . . . . . Flight . | . . . . . . Utility 18 | 1 4 . 7 4 2 Device 8 | . 2 . 2 3 1 Storage 5 | 1 1 . 2 1 . Processor 5 | . 1 . 3 . 1 Hackware . | . . . . . . Protection . | . . . . . . Artifact . | . . . . . . Weapon 30 | 2 3 4 9 6 6 Energy Gun 4 | . . . 1 1 2 Energy Cannon 6 | . 2 1 3 . . Ballistic Gun 8 | 2 1 3 1 . 1 Ballistic Cannon 2 | . . . 1 1 . Launcher 5 | . . . 1 2 2 Special Weapon . | . . . . . . Impact Weapon 3 | . . . 2 1 . Slashing Weapon 2 | . . . . 1 1 Piercing Weapon . | . . . . . . Special Melee Weapon . | . . . . . . Unidentified Prototypes 1 | . . . . . 1 Parts Lost 49 | . . 7 9 11 22 Power 8 | . . 1 . 3 4 Propulsion 21 | . . 2 7 3 9 Utility 7 | . . . 2 3 2 Weapon 13 | . . 4 . 2 7 Highest Loss Streak 14 | . . 7 4 2 14 To Critical Strikes 2 | . . . . . 2 Average Backups 13 | 2 8 10 10 17 17 Power . | . 1 . 1 . . Propulsion 1 | . . . . 4 1 Utility 5 | . 2 6 4 6 6 Weapon 5 | . 4 2 4 6 8 Tool/Special . | . . . . . . Unused Backups 21 | . 2 1 6 4 8 Power 2 | . . 1 1 . . Propulsion 4 | . . . 1 3 . Utility 10 | . . . 2 1 7 Weapon 5 | . 2 . 2 . 1 Tool/Special . | . . . . . . Average Slot Usage (%) 91 | . 95 96 85 95 88 Engine 6 | . 14 13 3 3 5 Core 4 | . . . 5 9 1 Treads 20 | . 28 12 7 25 34 Wheel 4 | . . 13 5 4 . Device 12 | . 9 . 16 13 12 Storage 9 | . 14 14 9 7 6 Processor 12 | . . 14 17 15 13 Energy Gun 1 | . . . . 2 1 Energy Cannon 6 | . 13 13 8 1 . Ballistic Gun 5 | . 14 14 3 . 2 Ballistic Cannon 2 | . . . 2 5 . Launcher 1 | . . . . 2 1 Peak Build Rating 60 | 6 12 14 25 44 60 Average Rating 26 | 5 9 11 19 38 48 On Entrance 15 | . 6 10 13 24 40 Avg Prop Armor Cover (%) 7 | . . 5 10 7 . Naked Turns . | . . . . . . Heaviest Build 111 | 12 33 33 103 111 107 Greatest Support 157 | 40 40 40 60 107 157 Greatest Overweight (x) 34 | . . 10 34 1 31 Average Overweight (x) 1 | . . . 2 . . Largest Inventory Capacity 25 | 8 15 15 25 25 25 Average Capacity 19 | 7 11 14 18 23 25 Most Carried 25 | 5 11 15 15 22 25 Average Carried 13 | 2 8 12 12 17 18 Final Capacity 25 | 8 15 15 15 25 25 Final Carried 17 | 2 11 12 12 17 10 Class Distribution -------------------- 69% | Mutant 17% | Skirmisher 9% | Scavenger-Mutant Dominant Class ---------------- Mutant | -10/Materials Mutant | -10/Subcaves Mutant | -8/Materials Skirmisher | -7/Factory Mutant | -6/Factory Resources | -11 -10 -10 -8 -7 -6 ----------- Run | Yrd Mat Sub Mat Fac Fac Matter Collected 2439 | 292 164 130 581 852 420 Remotely . | . . . . . . Salvage Created 5581 | 134 504 262 1654 1743 1284 Parts 291 | 7 33 8 71 92 80 Haulers Intercepted 10 | . 2 . 4 3 1 Recyclers Shooed 4 | . 2 . . 1 1 Parts Field Recycled . | . . . . . . Retrieved Matter . | . . . . . . Parts Self-Destructed 5 | . . 5 . . . Prevented . | . . . . . . Parts Restored . | . . . . . . Kills | -11 -10 -10 -8 -7 -6 ------- Run | Yrd Mat Sub Mat Fac Fac Combat Hostiles Destroyed 92 | . 14 6 27 27 18 Melee 17 | . . . 5 6 6 Guns 19 | . 7 3 3 5 1 Cannons 30 | . 7 3 12 6 2 AOE 22 | . . . 3 10 9 Classes Destroyed 14 | 2 4 1 5 2 . Worker 18 | . . . 8 8 2 Builder 12 | . . . 4 3 5 Tunneler 5 | 3 . . 1 . 1 Hauler 10 | . 2 . 4 3 1 Recycler 8 | 1 . . 1 4 2 Mechanic 1 | . . . 1 . . Watcher 6 | . 2 . 2 2 . Swarmer 15 | . 6 . 2 4 3 Grunt 45 | . 8 . 17 15 5 Brawler 3 | . . . 2 1 . Sentry 11 | . . . 6 2 3 Hunter 5 | . . . . 1 4 Programmer 7 | . . . . 4 3 Subdweller 6 | . . 6 . . . Best Kill Streak 11 | 3 8 4 11 7 7 Combat Bots Only 8 | . 8 4 5 4 5 Max Kills in Single Turn 4 | 1 2 1 4 2 3 Gunslinging . | . . . . . . Exploded 3 | . . . 1 2 3 Melee 1 | . . . 1 1 1 Uniques/NPCs Destroyed . | . . . . . . Combat | -11 -10 -10 -8 -7 -6 -------- Run | Yrd Mat Sub Mat Fac Fac Hostile Shots Fired 957 | . 42 60 267 185 403 Missed 284 | . 10 19 79 64 112 Hits 673 | . 32 41 188 121 291 Melee 6 | . . . 1 5 . Projectile 667 | . 32 41 187 116 291 AOE 8 | . . 8 . . . Critical Strikes 20 | . . . 8 3 9 Part Disruptions 2 | . . . . 1 1 Damage Taken 9231 | . 243 1107 2111 1847 3923 Core 1789 | . 42 194 376 316 861 Absorbed by Shields . | . . . . . . Ignored by Resistances 2569 | . 79 297 612 451 1130 Regen/Repaired (Parts) 375 | . . . . 375 . Core Remaining (%) 47 | 100 . 5 31 54 . Volleys Fired 273 | 11 35 19 86 77 45 Largest 2 | 2 2 2 2 2 2 Hottest 136 | 40 136 98 130 115 90 Shots Fired 473 | 22 70 36 168 123 54 Gun 198 | 22 34 19 40 49 34 Cannon 225 | . 36 17 118 49 5 Launcher 50 | . . . 10 25 15 Special . | . . . . . . Kinetic 176 | 22 34 19 48 26 27 Thermal 186 | . 36 17 108 23 2 Explosive 40 | . . . 10 20 10 Electromagnetic 71 | . . . 2 54 15 Robot Hit Streak 38 | 9 12 37 38 26 13 Robot Miss Streak 8 | 1 2 . 4 8 1 Penetration Max . | . . . . . . Secondary Targets . | . . . . . . Shots Hit Robots 419 | 18 44 27 158 116 56 Core Hits 253 | 9 22 10 64 95 53 Critical Kills 3 | . . . 2 . 1 Critical Parts Destroyed 4 | . . . 3 1 . Critical Strikes 12 | . . . 5 2 5 Destroy 1 | . . . . . 1 Smash 6 | . . . 5 1 . Sever 5 | . . . . 1 4 Melee Attacks 74 | . . . 27 29 18 Impact 29 | . . . 27 2 . Slashing 45 | . . . . 27 18 Piercing . | . . . . . . Sneak Attacks 13 | . . . 3 9 1 Combat Hostiles . | . . . . . . Follow-up Attacks . | . . . . . . Damage Inflicted 13279 | 138 949 501 4645 4169 2877 Guns 2484 | 138 365 254 585 567 575 Cannons 4528 | . 550 247 2481 1102 148 Explosions 3454 | . . . 631 1283 1540 Melee 2712 | . . . 901 1204 607 Ramming 101 | . 34 . 47 13 7 Kinetic 2707 | 138 365 254 812 607 531 Thermal 4017 | . 550 247 2225 561 434 Explosive 2365 | . . . 631 1032 702 Electromagnetic 1377 | . . . 29 752 596 Impact 997 | . . . 901 96 . Slashing 1715 | . . . . 1108 607 Piercing . | . . . . . . Highest Corruption 4 | . . . . 4 2 Average Corruption 2 | . . . . 2 1 Corruption Purged 2 | . . . . 2 . Corruption Blocked . | . . . . . . Effects 26 | . . . . 22 4 Message Errors 3 | . . . . 2 1 Matter Fused 8 | . . . . 8 . Heat Flow Errors 5 | . . . . 4 1 Energy Discharges 2 | . . . . 2 . Parts Rejected 1 | . . . . 1 . Data Loss (minor) 1 | . . . . 1 . Data Loss (major) 2 | . . . . 2 . Misfires 1 | . . . . 1 . Alerts 2 | . . . . 1 1 Weapon Failures 1 | . . . . . 1 Overload Shots . | . . . . . . Overflow Damage 487 | . . . 224 233 30 Projectiles 12 | . . . 12 . . Explosions 41 | . . . . 34 7 Melee 434 | . . . 212 199 23 Knockbacks 9 | . . . 4 5 . Impact 3 | . . . 3 . . Kinetic 6 | . . . 1 5 . Secondary . | . . . . . . Self-Inflicted Damage 587 | . . . 63 315 209 Shots 28 | . . . 5 12 11 Rammed 23 | . 18 . 4 . 1 Targets Rammed 24 | . 18 . 4 1 1 Kicked . | . . . . . . Crushed 1 | . . . . 1 . Highest Temperature 401 | . 252 2 401 348 119 Average Temperature 93 | . 94 2 82 116 54 Received Heat Transfer 2253 | . 120 90 1278 417 348 Effects 3 | . 2 . . 1 . Energy Bleed 1 | . . . . 1 . Interference 2 | . 2 . . . . Siege Activations . | . . . . . . Martial Activations . | . . . . . . Shielding Activations . | . . . . . . Robots Disrupted . | . . . . . . Combat Hostiles . | . . . . . . Robots Corrupted 5 | . . . 5 . . Combat Hostiles 4 | . . . 4 . . Parts Fried 13 | . . . 9 2 2 Impact Corruptions 12 | . . . 11 1 . Robots Melted . | . . . . . . Combat Hostiles . | . . . . . . Parts Melted 6 | . 2 1 . 2 1 Heat Transferred 5678 | . 999 444 3145 716 374 Parts Sabotaged . | . . . . . . Parts Stolen . | . . . . . . Parts Stripped . | . . . . . . Power Chain Reactions 8 | . . . . 5 3 Alert | -11 -10 -10 -8 -7 -6 ------- Run | Yrd Mat Sub Mat Fac Fac Maximum Alert Level 1 | . . . 1 . 1 Low Security (%) 94 | 100 100 . 82 100 99 Level 1 5 | . . . 17 . . Level 2 . | . . . . . . Level 3 . | . . . . . . Level 4 . | . . . . . . Level 5 . | . . . . . . High Security . | . . . . . . Max Security . | . . . . . . Peak Influence 319 | 10 170 . 319 162 202 Initial 18 | . . . . 18 . Average 44 | 1 26 . 69 36 40 Influence Increases 3056 | 20 349 . 900 1104 683 Destroy 0b10 Robot/C 1720 | . 280 . 540 540 360 Destroy 0b10 Robot/NC 300 | 20 20 . 105 100 55 Destroy Leader 452 | . 48 . 132 150 122 Successful Hack 62 | . . . 24 38 . Disable Machine 144 | . . . 18 90 36 Destroy Structure 243 | . 1 . 66 96 80 Partial Spotted 45 | . . . 15 30 . Lose Combat Pursuer 90 | . . . . 60 30 Influence Decreases 2906 | 20 349 . 852 1152 533 Entered New Map 30 | . . . . 30 . Time Decay 2476 | 20 349 . 772 1022 313 Lost Part 390 | . . . 80 100 210 Lost Ally 10 | . . . . . 10 Squads Dispatched 31 | . 1 . 9 14 7 Investigation 11 | . 1 . 1 8 1 Extermination 7 | . . . . 5 2 Reinforcement 9 | . . . 4 1 4 Assault . | . . . . . . Garrison 4 | . . . 4 . . Intercept . | . . . . . . Searches Triggered . | . . . . . . Construction Impeded 6 | . . . 3 1 2 Haulers Reinforced . | . . . . . . Active Scanning Responses . | . . . . . . Cargo Convoy Interrupts . | . . . . . . Stealth | -11 -10 -10 -8 -7 -6 --------- Run | Yrd Mat Sub Mat Fac Fac Distress Signals 5 | . 3 . 2 . . Communications Jammed . | . . . . . . Distress Signals . | . . . . . . Times Spotted 143 | . 24 15 39 38 27 Peak Tracking Total 10 | . 6 10 7 4 8 Tactical Retreats 6 | . . . . 4 2 Traps | -11 -10 -10 -8 -7 -6 ------- Run | Yrd Mat Sub Mat Fac Fac Traps Triggered 7 | . 1 3 1 2 . Indirectly . | . . . . . . Trap Hack Attempts . | . . . . . . Triggered . | . . . . . . Disarmed 4 | . . . . 4 . Reprogrammed . | . . . . . . Reused . | . . . . . . Traps Extracted . | . . . . . . Installed . | . . . . . . Triggered . | . . . . . . Machines | -11 -10 -10 -8 -7 -6 ---------- Run | Yrd Mat Sub Mat Fac Fac Machines Disabled 16 | . . . 2 10 4 Max in Single Turn 4 | . . . 1 4 3 Machines Repaired . | . . . . . . Machines Dismantled . | . . . . . . Machines Sabotaged . | . . . . . . Overloaded Fab Kills . | . . . . . . Hacking | -11 -10 -10 -8 -7 -6 --------- Run | Yrd Mat Sub Mat Fac Fac Machines Accessed 21 | . 1 . 7 12 1 Terminals 11 | . . . 6 5 . Fabricators 3 | . . . . 3 . Repair Stations 4 | . . . . 3 1 Recycling Units 1 | . 1 . . . . Scanalyzers 2 | . . . 1 1 . Garrison Access . | . . . . . . Total Hacks 61 | . 3 . 19 36 3 Successful 43 | . 3 . 15 25 . Failed 18 | . . . 4 11 3 Catastrophic 2 | . . . 1 1 . Database Lockouts . | . . . . . . Manual 1 | . . . . 1 . Terminals 24 | . . . 15 9 . Fabricators 7 | . . . . 7 . Repair Stations 20 | . . . . 17 3 Recycling Units 3 | . 3 . . . . Scanalyzers 7 | . . . 4 3 . Garrison Access . | . . . . . . Terminal Hacks 19 | . . . 13 6 . Record 4 | . . . . 4 . Prototype ID Bank 1 | . . . 1 . . Open DSF 1 | . . . . 1 . Emergency Access Points 2 | . . . 2 . . Scanalyzer Index 1 | . . . 1 . . Alert Level 2 | . . . 2 . . Disarm Traps 1 | . . . . 1 . Maintenance Status 1 | . . . 1 . . Surveillance Status 2 | . . . 2 . . Patrol Status 1 | . . . 1 . . Investigation Status 1 | . . . 1 . . Hauler Manifests 2 | . . . 2 . . Fabricator Hacks 6 | . . . . 6 . Load Schematic 3 | . . . . 3 . Build 3 | . . . . 3 . Repair Station Hacks 12 | . . . . 12 . Scan Component 7 | . . . . 7 . Repair 5 | . . . . 5 . Recycling Unit Hacks 3 | . 3 . . . . Process 1 | . 1 . . . . Report Inventory 1 | . 1 . . . . Retrieve Matter 1 | . 1 . . . . Scanalyzer 3 | . . . 2 1 . Insert Component 2 | . . . 1 1 . Analyze 1 | . . . 1 . . Garrison Access Hacks . | . . . . . . Unauthorized Hacks . | . . . . . . Terminals . | . . . . . . Fabricators . | . . . . . . Repair Stations . | . . . . . . Recycling Units . | . . . . . . Scanalyzers . | . . . . . . Garrison Access . | . . . . . . Data Cores Recovered . | . . . . . . Used . | . . . . . . Hacking Detections 15 | . . . 3 11 1 Full Trace Events 9 | . . . 1 7 1 Feedback Events . | . . . . . . Feedback Blocked . | . . . . . . Robot Schematics Acquired . | . . . . . . Robots Built . | . . . . . . Authchips . | . . . . . . Time . | . . . . . . Total Robot Build Rating . | . . . . . . Part Schematics Acquired 1 | . . . 1 . . Parts Built 6 | . . . . 6 . Authchips . | . . . . . . Time 144 | . . . . 144 . Total Part Build Rating 12 | . . . . 12 . Part Studies Acquired . | . . . . . . Parts Repaired 5 | . . . . 5 . Time 225 | . . . . 225 . Parts Recycled . | . . . . . . Recycled Matter 147 | . 147 . . . . Retrieved Matter 147 | . 147 . . . . Retrieved Components . | . . . . . . Parts Scanalyzed 2 | . . . 1 1 . Part Schematics Acquired 1 | . . . 1 . . Parts Damaged 1 | . . . . 1 . Bothacking | -11 -10 -10 -8 -7 -6 ------------ Run | Yrd Mat Sub Mat Fac Fac Used RIF Installer . | . . . . . . Robots Hacked . | . . . . . . Non-combat . | . . . . . . Combat . | . . . . . . Robot Hacks Applied . | . . . . . . Relay Couplers Released . | . . . . . . Fabnet Peak Effective % . | . . . . . . Robots Rewired . | . . . . . . Allies Hacked . | . . . . . . Hacks Repelled . | . . . . . . Allies | -11 -10 -10 -8 -7 -6 -------- Run | Yrd Mat Sub Mat Fac Fac Total Allies . | . . . . . . Largest Group . | . . . . . . Highest-Rated Group . | . . . . . . Highest-Rated Ally . | . . . . . . Total Orders . | . . . . . . Ally Attacks . | . . . . . . Total Damage . | . . . . . . Kills . | . . . . . . Allies Corrupted . | . . . . . . Allies Melted . | . . . . . . Intel | -11 -10 -10 -8 -7 -6 ------- Run | Yrd Mat Sub Mat Fac Fac Active Infowar (turns) 7654 | . 895 . 2452 3099 1208 Optics 4699 | . . . 392 3099 1208 Sensors 5004 | . 895 . 2452 1657 . Robot Analysis Total . | . . . . . . Derelict Logs Recovered 1 | . . 1 . . . Drone Launches 2 | . . . . . 2 Drone Recoveries . | . . . . . . Exploration | -11 -10 -10 -8 -7 -6 ------------- Run | Yrd Mat Sub Mat Fac Fac Turns Passed 9974 | 112 1843 870 2842 3099 1208 Spaces Moved 3786 | 56 668 503 979 1138 442 Core 98 | 17 . 9 66 . 6 Treads 2504 | 39 668 167 343 851 436 Legs 85 | . . . 85 . . Wheels 1099 | . . 327 485 287 . Hover . | . . . . . . Flight . | . . . . . . Fastest Speed 50 | 50 160 110 95 87 160 Average Speed 174 | 126 160 134 202 178 179 Slowest Speed 1750 | 160 160 550 1750 245 1600 Overloaded Moves . | . . . . . . Propulsion Burnouts . | . . . . . . Robots Hopped . | . . . . . . Potential Cave-ins 4 | . . 2 . . 2 Cave-ins Triggered 1 | . . . . 1 . Exploration Rate (%) 33 | 4 73 30 46 28 17 Regions Visited 5 Branch Regions 1 Pre-discovered Areas 1 | . . 1 . . . Known Exits Taken 4 | . 1 1 1 1 . Unknown Exits Taken 1 | 1 . . . . . Scrap Searched . | . . . . . . Spaces Dug 81 | . . . . 27 54 Terrain Destroyed 312 | . . . 87 111 114 Melee . | . . . . . . Projectile 18 | . . . 17 1 . AOE 294 | . . . 70 110 114 Terrain Rammed . | . . . . . . Walls Destroyed . | . . . . . . Machines Disabled . | . . . . . . Actions | -11 -10 -10 -8 -7 -6 --------- Run | Yrd Mat Sub Mat Fac Fac Total 6529 | 78 1361 662 1622 2031 775 Wait 2043 | . 607 100 422 701 213 Move 3781 | 55 667 502 978 1137 442 Hop . | . . . . . . Pick Up 129 | 5 17 21 36 35 15 Fast Attach 5 | 3 . 1 1 . . Attach 61 | 3 1 9 16 18 14 Detach 4 | . . . 2 2 . Swap 79 | 1 9 2 28 20 19 Drop 56 | . 7 8 22 11 8 Fire 273 | 11 35 19 86 77 45 Melee 74 | . . . 27 29 18 Ram 2 | . . . 2 . . Kick . | . . . . . . Crush 22 | . 18 . 2 1 1 Escape Stasis . | . . . . . . Rewire . | . . . . . . Trap . | . . . . . . Miscellaneous . | . . . . . . Route ------- -11/Scrapyard -10/Materials (discovered 3 exits: *Mat / [*Min] / *Sub) -10/Subcaves (discovered 2 exits: *Mat x2) -8/Materials -7/Factory (discovered 3 exits: *Fac x2 / *Sto) -6/Factory History --------- Turn | Location | Event 17 | -11/Scrapyard | Discovered new exit (range 15) 113 | -11/Scrapyard | Entered Materials 300 | -10/Materials | Build established: Mutant 660 | -10/Materials | Destroyed 8 combat bots 860 | -10/Materials | Discovered new exit (range 9) 1754 | -10/Materials | Discovered new exit (range 4) 1841 | -10/Materials | Discovered new exit (range 8) 1910 | -10/Materials | Identified exit to Materials 1955 | -10/Materials | Identified exit to Subcaves 1956 | -10/Materials | Entered Subcaves 1957 | -10/Subcaves | Approached by a straggling Scientist 2216 | -10/Subcaves | Learned location of Zion (-6) 2216 | -10/Subcaves | Met a Zionite searching for "candidates" 2298 | -10/Subcaves | Ambushed by swarm of Subdwellers 2298 | -10/Subcaves | Ambushed by Subdwellers from Twisted Machinery 2298 | -10/Subcaves | Ambushed by Subdwellers from Twisted Machinery 2321 | -10/Subcaves | Ambushed by Subdweller buried in earth 2324 | -10/Subcaves | Ambushed by Subdweller buried in earth 2326 | -10/Subcaves | Core integrity fell below 50% 2330 | -10/Subcaves | Core integrity fell below 20% 2362 | -10/Subcaves | Lost 5 allies 2381 | -10/Subcaves | Lost 7 parts (1p2n4w) 2455 | -10/Subcaves | Shifting Twisted Machinery released Spk. Treads 2459 | -10/Subcaves | Shifting Twisted Machinery released Humpback 2506 | -10/Subcaves | Discovered new exit (range 10) 2508 | -10/Subcaves | Learned Materials garrison access intel 2516 | -10/Subcaves | Shifting Twisted Machinery released Sub. Machine Gun 2518 | -10/Subcaves | Identified exit to Materials 2544 | -10/Subcaves | Shifting Twisted Machinery released Sub. Power Source 2688 | -10/Subcaves | Build established: Scavenger-Mutant 2784 | -10/Subcaves | Discovered exit to Materials (range 14) 2788 | -10/Subcaves | A swath of the cavern ceiling suddenly collapsed 2826 | -10/Subcaves | Entered Materials 2826 | -8/Materials | Evolved 4 slots: Propulsion x1, Utility x3 2827 | -8/Materials | Loaded intel: 1 garrison access location 3027 | -8/Materials | Build established: Mutant 3836 | -8/Materials | Garrison activated, responded to threat 4136 | -8/Materials | Core integrity fell below 50% 4159 | -8/Materials | Lost 4 parts (3n1u) 4184 | -8/Materials | Discovered new exit (range 16) 4277 | -8/Materials | Identified exit to Factory 5629 | -8/Materials | Garrison activated, responded to threat 5668 | -8/Materials | Entered Factory 5668 | -7/Factory | Evolved 2 slots: Power x1, Propulsion x1 5673 | -7/Factory | Identified exit to DSF 5723 | -7/Factory | Build established: Skirmisher 5745 | -7/Factory | Fabricated Spk. Treads? 5925 | -7/Factory | Discovered new exit (range 8) 5932 | -7/Factory | Identified exit to Storage 6426 | -7/Factory | Fabricated Spk. Treads (x2) 6459 | -7/Factory | Fabricated Spk. Treads (x2) 7083 | -7/Factory | Crushed by falling debris 7412 | -7/Factory | Repaired Broken Med. Treads 7468 | -7/Factory | Repaired Med. Treads 7624 | -7/Factory | Build established: Mutant 8526 | -7/Factory | Repaired Med. Treads 8559 | -7/Factory | Repaired Imp. Treads 8607 | -7/Factory | Repaired Imp. Deuterium Engine 8709 | -7/Factory | Discovered new exit (range 13) 8716 | -7/Factory | Discovered new exit (range 7) 8736 | -7/Factory | Identified exit to Factory 8767 | -7/Factory | Entered another Factory area 8767 | -6/Factory | Evolved 2 slots: Propulsion x2 9341 | -6/Factory | Spotted B-75 Beast 9756 | -6/Factory | Lost 3 parts (1p2n) 9894 | -6/Factory | Core integrity fell below 50% 9928 | -6/Factory | Core integrity fell below 20% 9930 | -6/Factory | Lost 14 parts (2p5n2u5w) 9975 | -6/Factory | Destroyed by H-66 Slayer with Gauss Rifle Last Messages --------------- R-10 Processor collects Corrupted Imp. Heat Sink. Penetrated by Slug. U-05 Engineer lays Concrete. R-10 Processor collects Corrupted Carbon-fiber Leg. U-05 Engineer lays Concrete. U-05 Engineer repairs door. U-05 Engineer lays Concrete. Penetrated by Slug. R-10 Processor collects Corrupted Adv. Heat Sink. U-05 Engineer lays Concrete. R-10 Processor collects Corrupted Terrain Scan Processor. Penetrated by Slug. Destroyed Terrain Scanner. Door malfunctions. Chain reaction triggered in Corrupted Lgt. Fission Core. U-05 Engineer destroyed. Penetrated by Slug. Gui. EMP Blaster destroyed. R-10 Processor collects Wheel. Penetrated by Slug. Map ----- +----------------------------------------------------+ | ?????????????????????????????????????????????????? | | ?????????????????????????????????????????????????? | | ?????????????????????????????????????????????????? | | ?????????????????????????????????????????????????? | | ?????????????????????????????????????????????????? | | ?????????????????????????????????????????????????? | | ?????????????????????????????????????????????????? | | ?????????????????????????????????????????????????? | | ?????????????????????????????????????????????????? | | ?????????????????????????????????????????????????? | | ?????????????????????????????????????????????????? | | ?????????????????????????????????????????????????? | | ?????????????????????????????????????????????????? | | ?????????????????????????????????????????????????? | | ?????????????????????????????????????????????????? | | ?????????????????????????????????????????????????? | | ????????????????????????##########???????????????? | | ????????????????????????# #???????????????? | | ????????????????????????# """" #???????????????? | | ????????????????????????# """" #?###???????????? | | ????????????????????????# """" # #???????????? | | ????????????????????##### " "" + ????????????? | | ???????????##############= #???????????????? | | ????? ### !!#[ R #???????????????? | | ?? + + %= %%%!! #???????????????? | | ?? ### ===@h= #???????????????? | | ???????????# % =;;R#######???????????????? | | ???????????# #; # ###???? #???????????? | | ???????????# % %#=#?#????? #???????????? | | ???????????# %## #?????? ##??????????? | | ???????????# #" ###### #??????????? | | ???????????# # #??????????? | | ???????????# # #??????????? | | ???????????# / h #??????????? | | ???????????# = # k#### #??????????? | | ???????????############## ################ ??? | | ???????????????# ?? | | ???????????????# #??? | | ???????????????# #??? | | ???????????????# #??? | | ???????????????# #??? | | ???????????????# ####### #??? | | ??????????????# ????# #% #??? | | ??????????????# [ ????###+############ #######??? | | ??????????????# ???????# #%* # #????????? | | ??????????????#????????### %= # ?????????? | | ????????????????????????## ! # ?????????? | | ????????????????????????# """ # #????????? | | ????????????????????????## != """ # ????????? | | ?????????????????????????# = """ # #????????? | +----------------------------------------------------+ Best States ------------- Heat Dissipation 45 Coolant Potential 65 Energy Generation 25 Energy Capacity 430 Matter Stores 300 Matter Capacity 300 Sight Range 22 Robot Scan Range 14 Terrain Scan Density 10 Base Temperature (-) 100 Resistance: KI 20 Resistance: TH 20 Resistance: EX 20 Resistance: EM 20 Resistance: I 20 Resistance: S 20 Resistance: P 20 Evasion (%) 50 Recoil Reduction 6 Offensive Hacking 10 Item Schematics ----------------- Spk. Treads | -8/Materials | Scanalyzed Robot Schematics ------------------ None Fabricated ------------ Spk. Treads | x2 | -7/Factory Spk. Treads | x2 | -7/Factory Spk. Treads | x2 | -7/Factory Repaired ---------- Med. Treads | 84% | -7/Factory | Broken Med. Treads | 48% | -7/Factory Med. Treads | 30% | -7/Factory Imp. Treads | 43% | -7/Factory Imp. Deuterium Engine | 56% | -7/Factory Studied --------- None Alien Tech Used ----------------- None Achievements -------------- Construction Begets Destruction Do Not Disturb Hydra Overwhelming Party Time Challenges ------------ None Game ------ Seed FactoryDisposableLog Manual? 0 Play Time 02:23:44 Cumulative 12.1 hours Start 2025.10.31 @ 22:33:26 End 2025.11.01 @ 01:32:13 Sessions 1 Manual Loads 0 Difficulty Adventurer Special Mode None Game No. 21 Rogue 5 Adventurer 16 Explorer 0 Win Type - Total 0 Types 0/0/0/0/0/0/0/0/0/0 Lore% 7 Gallery% 16 Achievement% 11 Wizard Run 0 Options --------- Layout 1 ASCII 0 Keyboard 0 Movement Mouse Keybinds 0 Fullscreen 2 Font 48/Smallcaps Map View 76x35 Zoom Use 1% Tactical HUD 0 Map Filters NONE Filters NONE Steam 1 RUN: 1f5633a1-28f4-401b-9961-90a42d53dea2